bitfinex-derivatives/quotes_BTCF0:USTF0_20251206
["timestamp","ask_amount","ask_price","bid_price","bid_amount"]
[1764999260292,0.42977274,89570.0,89569.0,0.05550638]
[1764999263807,0.42977274,89570.0,89569.0,0.08394638]
[1764999266398,0.14861034,89570.0,89569.0,0.08394638]
[1764999267601,9.034e-05,89570.0,89569.0,0.08394638]
[1764999268099,0.05861034,89570.0,89569.0,0.08394638]
[1764999268408,9.034e-05,89570.0,89569.0,0.08394638]
[1764999273601,0.05719,89584.0,89583.0,0.0663608]
[1764999274800,0.05735736,89590.0,89589.0,0.06636]
[1764999275004,0.44735736,89590.0,89589.0,0.06878002]
[1764999276712,0.44735736,89590.0,89589.0,0.06978002]
[1764999277208,0.15735736,89590.0,89589.0,0.06978002]
[1764999277407,0.00016736,89590.0,89589.0,0.06978002]
[1764999280003,0.02805736,89590.0,89589.0,0.06978002]
[1764999281410,0.05735736,89590.0,89589.0,0.06978002]
[1764999286410,0.00016736,89590.0,89589.0,0.08411002]
[1764999286610,0.07512,89604.0,89603.0,0.0663583]
[1764999286809,0.46512,89604.0,89603.0,0.0663583]
[1764999288004,0.46612,89604.0,89603.0,0.0663583]
[1764999288716,0.47112,89604.0,89603.0,0.0673583]
[1764999289110,0.4822781,89604.0,89603.0,0.0673583]
[1764999289311,0.4822781,89604.0,89603.0,0.0121583]
[1764999291213,0.4812781,89604.0,89603.0,0.0121583]
[1764999291415,0.4822781,89604.0,89603.0,0.0121583]
[1764999294109,0.4822781,89604.0,89603.0,0.0391883]
[1764999297221,0.4822781,89604.0,89603.0,0.0669883]
[1764999301520,0.47112,89604.0,89603.0,0.0669883]
[1764999302219,0.47112,89604.0,89603.0,0.0121583]
[1764999302921,0.47112,89604.0,89603.0,0.001]
[1764999303818,0.47112,89604.0,89595.0,0.01132666]
[1764999303819,0.07387,89596.0,89595.0,0.01132666]
[1764999304123,0.5150291,89596.0,89595.0,0.00016746]
[1764999304710,0.5150291,89596.0,89595.0,0.00258748]
[1764999304914,0.5150291,89596.0,89595.0,0.00116746]
[1764999306221,0.5160291,89596.0,89595.0,0.00116746]
[1764999307321,0.5160291,89596.0,89595.0,0.08129269]
[1764999308629,0.5160291,89596.0,89595.0,0.00116746]
[1764999323540,0.5160291,89596.0,89595.0,0.05647746]
[1764999325230,0.50487,89596.0,89595.0,0.05647746]
[1764999325536,0.50487,89596.0,89595.0,0.13660269]
[1764999326039,0.5160291,89596.0,89595.0,0.05647746]
[1764999326243,0.23738,89596.0,89595.0,0.13660269]
[1764999326537,0.05738,89596.0,89595.0,0.05647746]
[1764999331141,0.02974,89596.0,89595.0,0.05647746]
[1764999331438,0.02974,89596.0,89595.0,0.46647746]
[1764999332234,0.001,89596.0,89595.0,0.46647746]
[1764999334041,0.05827,89604.0,89603.0,0.05632]
[1764999334237,0.05827,89604.0,89603.0,0.05874002]
[1764999335045,0.05827,89604.0,89603.0,0.06989832]
[1764999335245,0.05827,89604.0,89603.0,0.1501452]
[1764999335945,0.07509,89604.0,89603.0,0.06989832]
[1764999336140,0.07509,89604.0,89603.0,0.15013342]
[1764999336346,0.08209,89604.0,89603.0,0.15113342]
[1764999336745,0.07609,89604.0,89603.0,0.15013342]
[1764999336945,0.07709,89604.0,89603.0,0.15013342]
[1764999337244,0.06027,89604.0,89603.0,0.15013342]
[1764999337542,0.05927,89604.0,89603.0,0.15013342]
[1764999337735,0.05927,89604.0,89603.0,0.15113342]
[1764999338133,0.05927,89604.0,89603.0,0.07089832]
[1764999346541,0.07609,89604.0,89603.0,0.07089832]
[1764999348651,0.47609,89604.0,89603.0,0.04325832]
[1764999348956,0.47609,89604.0,89603.0,0.01457832]
[1764999353255,0.47609,89604.0,89603.0,0.09481342]
[1764999355263,0.47609,89604.0,89603.0,0.01457832]
[1764999356567,0.47609,89604.0,89603.0,0.001]
[1764999356769,0.47609,89604.0,89603.0,0.00342002]
[1764999357166,0.47609,89604.0,89603.0,0.001]
[1764999357467,0.47609,89604.0,89603.0,0.00342002]
[1764999357866,0.47609,89604.0,89603.0,0.001]
[1764999358262,0.47609,89604.0,89603.0,0.00342002]
[1764999358763,0.47609,89604.0,89603.0,0.001]
[1764999359761,0.47609,89604.0,89603.0,0.00342002]
[1764999359959,0.47609,89604.0,89603.0,0.001]
[1764999360363,0.47609,89604.0,89603.0,0.00342002]
[1764999367779,0.47609,89604.0,89603.0,0.001]
[1764999368676,0.50236485,89604.0,89603.0,0.001]
[1764999369079,0.0704594,89594.0,89593.0,0.08036096]
[1764999369278,0.4904594,89594.0,89593.0,0.08036096]
[1764999370572,0.4904594,89594.0,89593.0,0.08236096]
[1764999370974,0.0593,89590.0,89589.0,0.03736096]
[1764999371172,0.0872011,89580.0,89579.0,0.1410255]
[1764999372177,0.0872011,89580.0,89579.0,0.02964]
[1764999373279,0.0872011,89580.0,89579.0,0.03064]
[1764999373472,0.4872011,89580.0,89579.0,0.001]
[1764999373672,0.4872011,89580.0,89579.0,0.00342002]
[1764999373874,0.4872011,89580.0,89579.0,0.001]
[1764999374680,0.4872011,89580.0,89579.0,0.03306002]
[1764999375582,0.4872011,89580.0,89579.0,0.03064]
[1764999384279,0.4872011,89580.0,89579.0,0.05775]
[1764999385284,0.4872011,89580.0,89579.0,0.03064]
[1764999386689,0.4872011,89580.0,89579.0,0.05775]
[1764999387692,0.2772011,89580.0,89579.0,0.0689113]
[1764999387892,0.2604611,89580.0,89579.0,0.0689113]
[1764999388783,0.2772011,89580.0,89579.0,0.0689113]
[1764999394198,0.2772011,89580.0,89579.0,0.001]
[1764999394398,0.4372011,89580.0,89579.0,0.0813687]
[1764999395401,0.4372011,89580.0,89579.0,0.1105887]
[1764999399304,0.4372011,89580.0,89579.0,0.03022]
[1764999400201,0.0593,89580.0,89579.0,0.0686413]
[1764999413119,0.0593,89580.0,89579.0,0.05748]
[1764999413312,0.0593,89580.0,89579.0,0.001]
[1764999413313,0.5071,89580.0,89579.0,0.001]
[1764999413507,0.5071,89580.0,89579.0,0.08136856]
[1764999420422,0.5071,89580.0,89579.0,0.14850986]
[1764999420628,0.4893,89580.0,89579.0,0.14850986]
[1764999421029,0.4893,89580.0,89579.0,0.13734856]
[1764999423327,0.4893,89580.0,89579.0,0.05698]
[1764999424033,0.0593,89580.0,89579.0,0.0681413]
[1764999424335,0.3193,89580.0,89579.0,0.05698]
[1764999427332,0.3193,89580.0,89579.0,0.13736242]
[1764999428232,0.3193,89580.0,89579.0,0.05698]
[1764999430833,0.0593,89580.0,89579.0,0.05698]
[1764999479678,0.05796746,89588.0,89587.0,0.05543]
[1764999479866,0.47796746,89588.0,89587.0,0.06901032]
[1764999482273,0.05796746,89588.0,89587.0,0.06901032]
[1764999495786,0.011158,89605.0,89604.0,0.05677]
[1764999495983,0.477168,89605.0,89604.0,0.0274]
[1764999496285,0.05601,89601.0,89600.0,0.0679285]
[1764999496484,0.44601,89601.0,89600.0,0.0679285]
[1764999498785,0.44801,89601.0,89600.0,0.0679285]
[1764999499380,0.14801,89601.0,89600.0,0.0679285]
[1764999499579,0.05801,89601.0,89600.0,0.14822456]
[1764999500186,0.05801,89601.0,89600.0,0.0679285]
[1764999500787,0.05801,89601.0,89600.0,0.14822456]
[1764999501383,0.05801,89601.0,89600.0,0.0679285]
[1764999502375,0.05601,89601.0,89600.0,0.0679285]
[1764999502585,0.05701,89601.0,89600.0,0.0679285]
[1764999509190,0.05701,89601.0,89600.0,0.14814645]
[1764999509388,0.02986,89601.0,89600.0,0.4379285]
[1764999510289,0.05933,89601.0,89600.0,0.4379285]
[1764999514800,0.0538561,89601.0,89600.0,0.4379285]
[1764999515193,0.0538561,89601.0,89600.0,0.4551185]
[1764999518607,0.0243861,89601.0,89600.0,0.4551185]
[1764999531211,0.0538561,89601.0,89600.0,0.4551185]
[1764999531802,0.001,89601.0,89600.0,0.4551185]
[1764999532314,0.0285,89601.0,89600.0,0.4551185]
[1764999533111,0.0285,89601.0,89600.0,0.5553428]
[1764999536109,0.0561,89601.0,89600.0,0.5553428]
[1764999540124,0.0285,89601.0,89600.0,0.4551185]
[1764999540625,0.001,89601.0,89600.0,0.4551185]
[1764999541014,0.02966,89601.0,89600.0,0.9723185]
[1764999541319,0.001,89601.0,89600.0,0.9723185]
[1764999545428,0.02966,89601.0,89600.0,0.9723185]
[1764999547931,0.05738,89601.0,89600.0,0.6023185]
[1764999548326,0.48738,89601.0,89600.0,0.16838858]
[1764999548624,0.48738,89601.0,89600.0,0.5851285]
[1764999549223,0.05638,89599.0,89598.0,0.10046008]
[1764999549423,0.05638,89597.0,89596.0,0.0111591]
[1764999549633,0.43638,89597.0,89596.0,0.0111591]
[1764999550428,0.43638,89597.0,89596.0,0.0673991]
[1764999552840,0.43738,89597.0,89596.0,0.0673991]
[1764999555729,0.43738,89597.0,89592.0,0.00016746]
[1764999555730,0.05638,89593.0,89592.0,0.00016746]
[1764999555934,0.48638,89593.0,89592.0,0.00016746]
[1764999558730,0.48738,89593.0,89592.0,0.00016746]
[1764999559038,0.4985395,89593.0,89592.0,0.00016746]
[1764999560123,0.0675406,89584.0,89582.0,0.09146836]
[1764999560329,0.07303,89583.0,89582.0,0.0111608]
[1764999560634,0.45303,89583.0,89582.0,0.0111608]
[1764999561934,0.45303,89583.0,89582.0,0.0393708]
[1764999562630,0.45303,89583.0,89582.0,0.0403708]
[1764999563440,0.45303,89583.0,89582.0,0.0684008]
[1764999564028,0.45303,89583.0,89582.0,0.05724]
[1764999564430,0.43638,89583.0,89582.0,0.05724]
[1764999579348,0.05638,89583.0,89582.0,0.05724]
[1764999580942,0.05756,89597.0,89596.0,0.05745]
[1764999581142,0.45756,89597.0,89596.0,0.05745]
[1764999582552,0.45856,89597.0,89596.0,0.05745]
[1764999589060,0.469719,89597.0,89596.0,0.05745]
[1764999595258,0.45856,89597.0,89596.0,0.05745]
[1764999601458,0.45856,89597.0,89594.0,0.0802074]
[1764999601459,0.0694193,89595.0,89594.0,0.0802074]
[1764999601660,0.0782796,89592.0,89591.0,0.0802074]
[1764999601851,0.4382796,89592.0,89591.0,0.0802074]
[1764999602057,0.0866399,89590.0,89589.0,0.0802074]
[1764999602257,0.4766399,89590.0,89589.0,0.0802074]
[1764999603152,0.0694201,89588.0,89587.0,0.0802074]
[1764999603357,0.4194201,89588.0,89587.0,0.0802074]
[1764999603562,0.4194201,89588.0,89586.0,0.0802074]
[1764999603563,0.05826,89587.0,89586.0,0.0802074]
[1764999603761,0.05826,89585.0,89584.0,0.0111606]
[1764999603956,0.43826,89585.0,89584.0,0.0111606]
[1764999605058,0.43826,89585.0,89584.0,0.091368]
[1764999605461,0.43826,89585.0,89584.0,0.0111606]
[1764999606070,0.43826,89585.0,89584.0,0.0121606]
[1764999607162,0.43826,89585.0,89584.0,0.001]
[1764999608171,0.43826,89585.0,89584.0,0.00342002]
[1764999609074,0.43826,89585.0,89584.0,0.08362742]
[1764999609273,0.43826,89585.0,89584.0,0.0812074]
[1764999609974,0.43826,89585.0,89584.0,0.1100974]
[1764999614673,0.05826,89585.0,89584.0,0.05944]
[1764999614876,0.05826,89585.0,89584.0,0.1397293]
[1764999617979,0.05826,89585.0,89584.0,0.05944]
[1764999618993,0.05826,89585.0,89584.0,0.1397293]
[1764999623389,0.16451995,89600.0,89584.0,0.1397293]
[1764999623390,0.05826,89600.0,89599.0,0.0695988]
[1764999623588,0.44826,89600.0,89599.0,0.0695988]
[1764999625390,0.45026,89600.0,89599.0,0.0695988]
[1764999625589,0.45026,89600.0,89599.0,0.0111588]
[1764999631192,0.05586,89595.0,89594.0,0.14963419]
[1764999631396,0.44586,89595.0,89594.0,0.0693493]
[1764999631579,0.4570193,89595.0,89594.0,0.0693493]
[1764999637597,0.44586,89595.0,89594.0,0.0693493]
[1764999639204,0.12586,89595.0,89594.0,0.0693493]
[1764999641400,0.12586,89595.0,89594.0,0.14963419]
[1764999643404,0.12586,89595.0,89594.0,0.0693493]
[1764999647313,0.12586,89595.0,89594.0,0.14963419]
[1764999650215,0.12586,89595.0,89594.0,0.0693493]
[1764999654716,0.42586,89595.0,89594.0,0.0693493]
[1764999657617,0.19586,89595.0,89594.0,0.0693493]
[1764999661022,0.40586,89595.0,89594.0,0.0693493]
[1764999662521,0.4170193,89595.0,89594.0,0.05819]
[1764999662726,0.40586,89595.0,89594.0,0.05819]
[1764999673141,0.40586,89595.0,89593.0,0.0111594]
[1764999673142,0.07327,89594.0,89593.0,0.0111594]
[1764999673336,0.42327,89594.0,89593.0,0.0111594]
[1764999673530,0.42327,89594.0,89593.0,0.0399394]
[1764999673730,0.42327,89594.0,89593.0,0.0687194]
[1764999677636,0.42727,89594.0,89593.0,0.0687194]
[1764999688550,0.41011,89594.0,89593.0,0.0687194]
[1764999733997,0.06011,89594.0,89593.0,0.0687194]
[1764999735591,0.06011,89594.0,89593.0,0.4987194]
[1764999735796,0.004,89594.0,89593.0,0.4987194]
[1764999746202,0.06176,89594.0,89593.0,0.4987194]
[1764999746408,0.44176,89594.0,89593.0,0.0687194]
[1764999747608,0.44176,89594.0,89593.0,0.05756]
[1764999747910,0.44176,89594.0,89589.0,0.10032753]
[1764999747911,0.05776,89590.0,89589.0,0.10032753]
[1764999748099,0.05776,89588.0,89587.0,0.0401402]
[1764999748297,0.40776,89588.0,89587.0,0.0699302]
[1764999749905,0.41076,89588.0,89587.0,0.0699302]
[1764999750912,0.40776,89588.0,89587.0,0.0699302]
[1764999751108,0.41076,89588.0,89587.0,0.0699302]
[1764999776129,0.41076,89588.0,89587.0,0.17025773]
[1764999777122,0.41076,89588.0,89587.0,0.0699302]
[1764999779532,0.18076,89588.0,89587.0,0.0699302]
[1764999781529,0.06076,89588.0,89587.0,0.4199302]
[1764999781838,0.02921,89599.0,89598.0,0.0857988]
[1764999782029,0.00449977,89599.0,89598.0,0.0857988]
[1764999782434,0.01662746,89609.0,89608.0,0.0871476]
[1764999782734,0.42662746,89609.0,89608.0,0.0871476]
[1764999784739,0.42762746,89609.0,89608.0,0.0871476]
[1764999785038,0.43562746,89609.0,89608.0,0.0881476]
[1764999785750,0.13562746,89609.0,89608.0,0.0881476]
[1764999785950,0.13562746,89609.0,89608.0,0.16849874]
[1764999786155,0.13562746,89609.0,89608.0,0.0881476]
[1764999786444,0.13462746,89609.0,89608.0,0.0881476]
[1764999786658,0.13462746,89609.0,89608.0,0.16849874]
[1764999786842,0.12662746,89609.0,89608.0,0.0871476]
[1764999787042,0.13262746,89609.0,89608.0,0.0871476]
[1764999787250,0.13262746,89609.0,89608.0,0.16739054]
[1764999787552,0.02262746,89609.0,89608.0,0.16739054]
[1764999787847,0.02062746,89609.0,89608.0,0.16739054]
[1764999788348,0.02062746,89609.0,89608.0,0.0871476]
[1764999789556,0.01239746,89609.0,89608.0,0.16739054]
[1764999790744,0.02062746,89609.0,89608.0,0.16739054]
[1764999791248,0.01239746,89609.0,89608.0,0.16739054]
[1764999793146,0.01239746,89609.0,89608.0,0.0871476]
[1764999793552,0.01239746,89609.0,89608.0,0.16739054]
[1764999794353,0.01239746,89609.0,89608.0,0.0871476]
[1764999794554,0.00416746,89609.0,89608.0,0.0871476]
[1764999794750,0.16444818,89640.0,89608.0,0.0871476]
[1764999794751,0.01646,89624.0,89623.0,0.0702057]
[1764999794948,0.42646,89624.0,89623.0,0.0702057]
[1764999795951,0.42746,89624.0,89623.0,0.0702057]
[1764999796248,0.43546,89624.0,89623.0,0.0712057]
[1764999797956,0.43546,89624.0,89623.0,0.08266995]
[1764999814862,0.43546,89624.0,89623.0,0.07151425]
[1764999820266,0.43546,89624.0,89623.0,0.01246425]
[1764999820874,0.43546,89624.0,89623.0,0.03999425]
[1764999821064,0.43546,89624.0,89623.0,0.14942625]
[1764999823071,0.43546,89624.0,89623.0,0.06927425]
[1764999824170,0.43546,89624.0,89623.0,0.14957371]
[1764999830274,0.43546,89624.0,89623.0,0.06927425]
[1764999830478,0.43546,89624.0,89623.0,0.14960957]
[1764999831075,0.43546,89624.0,89623.0,0.06927425]
[1764999831986,0.02546,89624.0,89623.0,0.06927425]
[1764999832285,0.20546,89624.0,89623.0,0.06927425]
[1764999842003,0.40546,89624.0,89623.0,0.06927425]
[1764999842797,0.40546,89624.0,89623.0,0.01246425]
[1764999843104,0.4166157,89624.0,89623.0,0.01246425]
[1764999843284,0.4166157,89624.0,89619.0,0.08029181]
[1764999843285,0.0276162,89620.0,89619.0,0.08029181]
[1764999843486,0.01646,89611.0,89604.0,0.18075521]
[1764999843699,0.01646,89602.0,89600.0,0.08029181]
[1764999843898,0.01646,89600.0,89599.0,0.08029181]
[1764999844094,0.40646,89600.0,89599.0,0.08029181]
[1764999844296,0.01646,89594.0,89593.0,0.09145131]
[1764999844489,0.44646,89594.0,89593.0,0.10282321]
[1764999845198,0.44646,89594.0,89593.0,0.0225314]
[1764999845700,0.44646,89594.0,89593.0,0.0496914]
[1764999846196,0.44846,89594.0,89593.0,0.0496914]
[1764999849092,0.44846,89594.0,89593.0,0.0385319]
[1764999849700,0.44846,89594.0,89593.0,0.0658519]
[1764999849701,0.11846,89594.0,89593.0,0.0658519]
[1764999859999,0.0296194,89594.0,89593.0,0.0658519]
[1764999860204,0.4296194,89594.0,89593.0,0.0658519]
[1764999862319,0.01846,89594.0,89593.0,0.0658519]
[1764999874224,0.01846,89594.0,89593.0,0.14620216]
[1764999879622,0.01846,89594.0,89593.0,0.0658519]
[1764999880427,0.37846,89594.0,89593.0,0.0658519]
[1764999889841,0.00016735,89602.0,89601.0,0.05553]
[1764999890034,0.39062735,89602.0,89601.0,0.06910852]
[1764999890631,0.39062735,89602.0,89601.0,0.05553]
[1764999891032,0.39162735,89602.0,89601.0,0.05553]
[1764999891236,0.39762735,89602.0,89601.0,0.05553]
[1764999891944,0.39662735,89602.0,89601.0,0.05553]
[1764999892444,0.39562735,89602.0,89601.0,0.05553]
[1764999893640,0.39562735,89602.0,89595.0,0.08032827]
[1764999893641,0.0316191,89596.0,89595.0,0.08032827]
[1764999893845,0.02046,89594.0,89593.0,0.08032827]
[1764999894045,0.0316195,89593.0,89592.0,0.08032827]
[1764999894246,0.4116195,89593.0,89592.0,0.08032827]
[1764999895746,0.4126195,89593.0,89592.0,0.08032827]
[1764999896555,0.4126195,89593.0,89592.0,0.10824827]
[1764999897453,0.4126195,89593.0,89592.0,0.02792]
[1764999897752,0.4126195,89593.0,89592.0,0.1082513]
[1764999897951,0.4126195,89593.0,89592.0,0.1358313]
[1764999899455,0.4126195,89593.0,89592.0,0.1526913]
[1764999901154,0.4126195,89593.0,89592.0,0.07236]
[1764999901355,0.4126195,89593.0,89592.0,0.1526913]
[1764999902154,0.4126195,89593.0,89592.0,0.07236]
[1764999907252,0.4116195,89593.0,89592.0,0.07236]
[1764999907457,0.41702752,89593.0,89592.0,0.07236]
[1764999908360,0.41802752,89593.0,89592.0,0.07236]
[1764999913969,0.41702752,89593.0,89592.0,0.07236]
[1764999915169,0.02046,89592.0,89591.0,0.0803313]
[1764999915361,0.40046,89592.0,89591.0,0.0803313]
[1764999916174,0.0316198,89591.0,89590.0,0.1389413]
[1764999916357,0.4616198,89591.0,89590.0,0.1389413]
[1764999916564,0.4616198,89591.0,89590.0,0.05861]
[1764999918069,0.4636198,89591.0,89590.0,0.05861]
[1764999918671,0.0316201,89588.0,89587.0,0.04046283]
[1764999918867,0.4116201,89588.0,89587.0,0.04046283]
[1764999920365,0.4126201,89588.0,89587.0,0.04046283]
[1764999920664,0.4126201,89588.0,89587.0,0.02899]
[1764999921064,0.4126201,89588.0,89587.0,0.1093213]
[1764999921272,0.4126201,89588.0,89587.0,0.02899]
[1764999922574,0.4126201,89588.0,89587.0,0.04060667]
[1764999922867,0.4126201,89588.0,89587.0,0.07022667]
[1764999923371,0.4126201,89588.0,89587.0,0.15055797]
[1764999924372,0.4126201,89588.0,89587.0,0.0803313]
[1764999924574,0.4126201,89588.0,89574.0,0.01728]
[1764999924575,0.0111604,89586.0,89584.0,0.0803313]
[1764999924871,0.02046,89585.0,89584.0,0.1093213]
[1764999925072,0.38046,89585.0,89584.0,0.1093213]
[1764999925273,0.38046,89585.0,89584.0,0.0803313]
[1764999925968,0.0316206,89584.0,89583.0,0.0803313]
[1764999926266,0.3916206,89584.0,89583.0,0.0803313]
[1764999926466,0.3916206,89584.0,89583.0,0.09173863]
[1764999926875,0.3916206,89584.0,89583.0,0.12072863]
[1764999927274,0.3926206,89584.0,89583.0,0.12072863]
[1764999928972,0.3926206,89584.0,89583.0,0.16762863]
[1764999929173,0.3721606,89584.0,89583.0,0.16762863]
[1764999929680,0.3823906,89584.0,89583.0,0.16762863]
[1764999929880,0.3926206,89584.0,89583.0,0.16762863]
[1764999931275,0.071,89584.0,89583.0,0.16762863]
[1764999931576,0.001,89584.0,89583.0,0.08729733]
[1764999934576,0.0213889,89598.0,89595.0,0.01738]
[1764999934783,0.36,89598.0,89597.0,0.05863002]
[1764999935879,0.361,89598.0,89597.0,0.05863002]
[1764999936079,0.367,89598.0,89597.0,0.05863002]
[1764999936382,0.37723,89598.0,89597.0,0.05863002]
[1764999937177,0.37423,89598.0,89597.0,0.05863002]
[1764999937683,0.37323,89598.0,89597.0,0.05863002]
[1764999938786,0.38046,89598.0,89597.0,0.05863002]
[1764999938983,0.38146,89598.0,89597.0,0.05863002]
[1764999939686,0.361,89598.0,89597.0,0.05863002]
[1764999940985,0.37123,89598.0,89597.0,0.05863002]
[1764999941288,0.38146,89598.0,89597.0,0.05863002]
[1764999941783,0.38146,89598.0,89597.0,0.02769]
[1764999941984,0.02046,89596.0,89595.0,0.04507]
[1764999942189,0.39046,89596.0,89595.0,0.04507]
[1764999942689,0.39046,89596.0,89595.0,0.07359]
[1764999943590,0.39146,89596.0,89595.0,0.07359]
[1764999954687,0.02046,89593.0,89592.0,0.04458]
[1764999954885,0.02046,89593.0,89589.0,0.07188]
[1764999954886,0.02046,89590.0,89589.0,0.07188]
[1764999955086,0.02046,89589.0,89588.0,0.08030469]
[1764999955297,0.41046,89589.0,89588.0,0.13480469]
[1764999956998,0.41046,89589.0,89588.0,0.0545]
[1764999958100,0.41146,89589.0,89588.0,0.0545]
[1764999961000,0.02046,89584.0,89583.0,0.08448733]
[1764999961205,0.39046,89584.0,89583.0,0.08448733]
[1764999963606,0.39146,89584.0,89583.0,0.08448733]
[1764999969510,0.01123,89584.0,89583.0,0.08448733]
[1764999970102,0.02146,89584.0,89583.0,0.08448733]
[1764999977311,0.01123,89584.0,89583.0,0.08448733]
[1764999982637,0.37146,89584.0,89583.0,0.08448733]
[1765000027869,0.001,89584.0,89583.0,0.08448733]
[1765000028065,0.001,89584.0,89583.0,0.46448733]
[1765000033271,0.001,89584.0,89583.0,0.5648985]
[1765000035661,0.02062735,89602.0,89601.0,0.0658385]
[1765000035863,0.40062735,89602.0,89601.0,0.0658385]
[1765000036670,0.00016735,89602.0,89601.0,0.0658385]
[1765000036970,0.00116735,89602.0,89601.0,0.0658385]
[1765000037170,0.00816735,89602.0,89601.0,0.0658385]
[1765000037771,0.00216735,89602.0,89601.0,0.0658385]
[1765000039075,0.00116735,89602.0,89601.0,0.0658385]
[1765000039772,0.00016735,89602.0,89601.0,0.0658385]
[1765000042888,0.44062735,89602.0,89601.0,0.0111585]
[1765000043075,0.02046,89600.0,89599.0,0.05468]
[1765000043369,0.01039735,89602.0,89601.0,0.07117]
[1765000043571,0.43062735,89602.0,89601.0,0.07359002]
[1765000048876,0.15062735,89602.0,89601.0,0.07359002]
[1765000049368,0.02062735,89602.0,89601.0,0.07359002]
[1765000051177,0.43062735,89602.0,89601.0,0.07359002]
[1765000051371,0.43062735,89602.0,89601.0,0.05468]
[1765000051576,0.43062735,89602.0,89600.0,0.0111586]
[1765000051577,0.02046,89601.0,89600.0,0.0111586]
[1765000051777,0.44046,89601.0,89600.0,0.0111586]
[1765000052076,0.44046,89601.0,89600.0,0.0389586]
[1765000052772,0.44146,89601.0,89600.0,0.0662686]
[1765000053075,0.44646,89601.0,89600.0,0.0662686]
[1765000054077,0.44546,89601.0,89600.0,0.0662686]
[1765000059077,0.02546,89601.0,89600.0,0.0662686]
[1765000059283,0.005,89601.0,89600.0,0.0662686]
[1765000059677,0.01523,89601.0,89600.0,0.0662686]
[1765000059983,0.02546,89601.0,89600.0,0.0662686]
[1765000062185,0.02546,89601.0,89600.0,0.14658702]
[1765000063684,0.02546,89601.0,89600.0,0.0662686]
[1765000065090,0.005,89601.0,89600.0,0.0662686]
[1765000066296,0.004,89601.0,89600.0,0.0662686]
[1765000066696,0.00016735,89602.0,89601.0,0.07135]
[1765000066997,0.00016735,89602.0,89601.0,0.07377002]
[1765000067202,0.02046,89615.0,89614.0,0.05511]
[1765000067398,0.41046,89615.0,89614.0,0.05511]
[1765000068904,0.41146,89615.0,89614.0,0.05511]
[1765000069604,0.41046,89615.0,89614.0,0.05511]
[1765000069805,0.41146,89615.0,89614.0,0.05511]
[1765000070006,0.41546,89615.0,89614.0,0.05511]
[1765000087120,0.02046,89608.0,89607.0,0.04563]
[1765000087419,0.42046,89608.0,89607.0,0.07304]
[1765000088818,0.4316176,89608.0,89607.0,0.07304]
[1765000089008,0.4316176,89608.0,89606.0,0.00016745]
[1765000089009,0.02046,89607.0,89606.0,0.00016745]
[1765000089208,0.45046,89607.0,89606.0,0.00016745]
[1765000089915,0.02046,89601.0,89600.0,0.08027394]
[1765000090113,0.4516185,89601.0,89600.0,0.08027394]
[1765000091313,0.4566185,89601.0,89600.0,0.08027394]
[1765000091710,0.4576185,89601.0,89600.0,0.13707394]
[1765000091913,0.4576185,89601.0,89600.0,0.15493394]
[1765000093819,0.4576185,89601.0,89600.0,0.07466]
[1765000095814,0.4576185,89601.0,89600.0,0.15493394]
[1765000096516,0.4576185,89601.0,89600.0,0.07466]
[1765000096724,0.44646,89601.0,89600.0,0.07466]
[1765000097026,0.44546,89601.0,89600.0,0.15493394]
[1765000097320,0.44646,89601.0,89600.0,0.15493394]
[1765000097922,0.44546,89601.0,89600.0,0.13707394]
[1765000098121,0.44646,89601.0,89600.0,0.0568]
[1765000102025,0.44646,89601.0,89600.0,0.02939]
[1765000103927,0.44646,89601.0,89600.0,0.0568]
[1765000108519,0.02646,89601.0,89600.0,0.0568]
[1765000108725,0.26646,89601.0,89600.0,0.0568]
[1765000110335,0.26546,89601.0,89600.0,0.0568]
[1765000111934,0.005,89601.0,89600.0,0.13707394]
[1765000112125,0.005,89601.0,89600.0,0.0568]
[1765000113323,0.0111563,89619.0,89618.0,0.05544]
[1765000113324,0.0316163,89619.0,89618.0,0.05544]
[1765000113528,0.3816163,89619.0,89618.0,0.05544]
[1765000115036,0.37046,89619.0,89618.0,0.05544]
[1765000115528,0.37546,89619.0,89618.0,0.05544]
[1765000116535,0.37646,89619.0,89618.0,0.05544]
[1765000117234,0.37546,89619.0,89618.0,0.05544]
[1765000117430,0.37646,89619.0,89618.0,0.05544]
[1765000125640,0.37346,89619.0,89618.0,0.05544]
[1765000126141,0.37146,89619.0,89618.0,0.05544]
[1765000126340,0.37246,89619.0,89618.0,0.05544]
[1765000126838,0.37146,89619.0,89618.0,0.05544]
[1765000129228,0.37046,89619.0,89618.0,0.05544]
[1765000134743,0.02046,89617.0,89616.0,0.0111566]
[1765000134943,0.37046,89617.0,89616.0,0.0111566]
[1765000135144,0.37046,89617.0,89616.0,0.0388366]
[1765000135345,0.37046,89617.0,89616.0,0.0673066]
[1765000135845,0.37146,89617.0,89616.0,0.0673066]
[1765000137544,0.37146,89617.0,89616.0,0.05615]
[1765000138050,0.37146,89617.0,89616.0,0.02768]
[1765000138240,0.02046,89616.0,89615.0,0.08025435]
[1765000138438,0.37046,89616.0,89615.0,0.10793435]
[1765000139451,0.37046,89616.0,89615.0,0.02768]
[1765000140343,0.37146,89616.0,89615.0,0.02768]
[1765000140854,0.37546,89616.0,89615.0,0.02768]
[1765000141441,0.37546,89616.0,89615.0,0.05615]
[1765000144955,0.02046,89614.0,89613.0,0.011157]
[1765000145148,0.02046,89614.0,89610.0,0.02769]
[1765000145149,0.02046,89611.0,89610.0,0.02769]
[1765000145355,0.02046,89609.0,89608.0,0.04421]
[1765000145556,0.42046,89609.0,89608.0,0.02769]
[1765000145758,0.42046,89609.0,89608.0,0.0553]
[1765000147552,0.42146,89609.0,89608.0,0.0553]
[1765000151159,0.02046,89607.0,89606.0,0.10039803]
[1765000151362,0.02046,89601.0,89599.0,0.08033401]
[1765000151556,0.02046,89600.0,89599.0,0.08033401]
[1765000151855,0.42046,89600.0,89599.0,0.13563401]
[1765000152366,0.42046,89600.0,89599.0,0.0553]
[1765000153864,0.42246,89600.0,89599.0,0.0553]
[1765000158564,0.402,89600.0,89599.0,0.0553]
[1765000158864,0.002,89600.0,89599.0,0.0553]
[1765000160556,0.0316175,89610.0,89609.0,0.0553]
[1765000160757,0.4116175,89610.0,89609.0,0.0553]
[1765000161964,0.40046,89610.0,89609.0,0.0553]